{"text_format":"1","workbook":"xlsx","n_sheets":3,"sheets":["Grafikas","Pildymo instrukcija","Resources"],"not_rendered":{"charts":0,"images":30,"macros":1,"external_links":1,"defined_names":18,"comments":1,"pivot_tables":0},"unopened":[],"bounds":{"document_bytes":16777216,"sheet_cells":100000,"rows_first":2000,"rows_last":500,"rows_between":2000,"halvings":0,"cell_chars":16384,"cell_head_chars":4096},"cells_cut":0,"cells_raw":0,"read":"whole","date_system":"1900"}

{"sheet":"Grafikas","index":0,"n_rows":261,"n_cols":52,"rows_kept":261,"cut":false,"hidden":false,"merged":[[260,3,260,9],[261,3,261,9],[4,6,4,23],[1,5,1,9],[5,10,5,45],[2,5,2,20],[3,5,3,20],[6,6,8,6],[6,7,8,7],[6,8,8,8],[6,9,8,9],[6,10,6,49],[6,0,8,0],[6,2,8,2],[6,3,8,3],[6,4,8,4],[6,5,8,5],[6,1,8,1]]}
[]
[null,null,null,"Projekto kodas/Priemonės numeris: "]
[null,null,null,"Projekto pavadinimas: "]
[null,null,null,"Pareiškėjas: "]
[null,"Detalus projekto veiklų įgyvendinimo grafikas",null,"Projekto sutarties pasirašymo data:",null,null,"Detalus projekto veiklų ir pirkimų įgyvendinimo grafikas"]
[1,null,2,2,null,3,4,5,6,7,"Projekto veiklų įgyvendinimo trukmė (mėn.)"]
["Nr.","Veiklos pavadinimas","Veiklos etapo Nr","Veiklos, poveiklės (pirkimai) ir jų etapai","Pirkimo objekto rūšis","Pirkimo būdas","Pirkimo sutarties vertė, finansuojama projekto lėšomis ","Veiklos etapai baigti iki projekto sutarties pasirašymo","Projekto sutarties mėnuo, kai pradedama vykdyti veikla","Projekto sutarties mėnuo, kai baigiama vykdyti veikla","Projekto veiklų vykdymo laikotarpis, mėn."]
[null,null,null,null,null,null,null,null,null,null,"(1)","(2)","(3)","(4)","(5)","(6)","(7)","(8)","(9)","(10)","(11)","(12)","(13)","(14)","(15)","(16)","(17)","(18)","(19)","(20)","(21)","(22)","(23)","(24)","(25)","(26)","(27)","(28)","(29)","(30)","(31)","(32)","(33)","(34)","(35)","(36)","(37)","(38)","(39)","(40)"]
[null,null,null,null,null,null,null,null,null,null,{"$f":"DATE(YEAR(F5),MONTH(F5)+1,DAY(F5))","v":"1900-01-31"},{"$f":"DATE(YEAR(K9),MONTH(K9)+1,DAY(K9))","v":"1900-03-02"},{"$f":"DATE(YEAR(L9),MONTH(L9)+1,DAY(L9))","v":"1900-04-02"},{"$f":"DATE(YEAR(M9),MONTH(M9)+1,DAY(M9))","v":"1900-05-02"},{"$f":"DATE(YEAR(N9),MONTH(N9)+1,DAY(N9))","v":"1900-06-02"},"1900-07-02","1900-08-02",{"$f":"DATE(YEAR(Q9),MONTH(Q9)+1,DAY(Q9))","v":"1900-09-02"},{"$f":"DATE(YEAR(R9),MONTH(R9)+1,DAY(R9))","v":"1900-10-02"},{"$f":"DATE(YEAR(S9),MONTH(S9)+1,DAY(S9))","v":"1900-11-02"},{"$f":"DATE(YEAR(T9),MONTH(T9)+1,DAY(T9))","v":"1900-12-02"},{"$f":"DATE(YEAR(U9),MONTH(U9)+1,DAY(U9))","v":"1901-01-02"},{"$f":"DATE(YEAR(V9),MONTH(V9)+1,DAY(V9))","v":"1901-02-02"},{"$f":"DATE(YEAR(W9),MONTH(W9)+1,DAY(W9))","v":"1901-03-02"},{"$f":"DATE(YEAR(X9),MONTH(X9)+1,DAY(X9))","v":"1901-04-02"},{"$f":"DATE(YEAR(Y9),MONTH(Y9)+1,DAY(Y9))","v":"1901-05-02"},{"$f":"DATE(YEAR(Z9),MONTH(Z9)+1,DAY(Z9))","v":"1901-06-02"},{"$f":"DATE(YEAR(AA9),MONTH(AA9)+1,DAY(AA9))","v":"1901-07-02"},{"$f":"DATE(YEAR(AB9),MONTH(AB9)+1,DAY(AB9))","v":"1901-08-02"},{"$f":"DATE(YEAR(AC9),MONTH(AC9)+1,DAY(AC9))","v":"1901-09-02"},{"$f":"DATE(YEAR(AD9),MONTH(AD9)+1,DAY(AD9))","v":"1901-10-02"},{"$f":"DATE(YEAR(AE9),MONTH(AE9)+1,DAY(AE9))","v":"1901-11-02"},{"$f":"DATE(YEAR(AF9),MONTH(AF9)+1,DAY(AF9))","v":"1901-12-02"},{"$f":"DATE(YEAR(AG9),MONTH(AG9)+1,DAY(AG9))","v":"1902-01-02"},{"$f":"DATE(YEAR(AH9),MONTH(AH9)+1,DAY(AH9))","v":"1902-02-02"},{"$f":"DATE(YEAR(AI9),MONTH(AI9)+1,DAY(AI9))","v":"1902-03-02"},{"$f":"DATE(YEAR(AJ9),MONTH(AJ9)+1,DAY(AJ9))","v":"1902-04-02"},{"$f":"DATE(YEAR(AK9),MONTH(AK9)+1,DAY(AK9))","v":"1902-05-02"},{"$f":"DATE(YEAR(AL9),MONTH(AL9)+1,DAY(AL9))","v":"1902-06-02"},{"$f":"DATE(YEAR(AM9),MONTH(AM9)+1,DAY(AM9))","v":"1902-07-02"},{"$f":"DATE(YEAR(AN9),MONTH(AN9)+1,DAY(AN9))","v":"1902-08-02"},{"$f":"DATE(YEAR(AO9),MONTH(AO9)+1,DAY(AO9))","v":"1902-09-02"},{"$f":"DATE(YEAR(AP9),MONTH(AP9)+1,DAY(AP9))","v":"1902-10-02"},{"$f":"DATE(YEAR(AQ9),MONTH(AQ9)+1,DAY(AQ9))","v":"1902-11-02"},{"$f":"DATE(YEAR(AR9),MONTH(AR9)+1,DAY(AR9))","v":"1902-12-02"},{"$f":"DATE(YEAR(AS9),MONTH(AS9)+1,DAY(AS9))","v":"1903-01-02"},{"$f":"DATE(YEAR(AT9),MONTH(AT9)+1,DAY(AT9))","v":"1903-02-02"},{"$f":"DATE(YEAR(AU9),MONTH(AU9)+1,DAY(AU9))","v":"1903-03-02"},{"$f":"DATE(YEAR(AV9),MONTH(AV9)+1,DAY(AV9))","v":"1903-04-02"},{"$f":"DATE(YEAR(AW9),MONTH(AW9)+1,DAY(AW9))","v":"1903-05-02"}]
[null,null,null,"Veiklos pavadinimas"]
[1,"Pavadinimas",null,null,"Prekės"," ",0,null,{"$f":"MIN(I12:I13)","v":0},{"$f":"MAX(J12:J13)","v":0}]
[]
[null,null,null,"Atsiskaitymai",null,null,null,null,"#","#"]
[null,null,null,"Naujos veiklos pavadinimas"]
[2,null,null,"Poveiklės (pirkimo) pavadinimas","Prekės"," ",0,null,{"$f":"MIN(I36:I37)","v":0},{"$f":"MAX(J36:J37)","v":0}]
[null,null,null,1]
[]
[]
[]
[]
[]
[]
[]
[]
[]
[]
[]
[]
[]
[]
[]
[]
[]
[null,null,null,17]
[null,null,null,18]
[]
[null,null,null,"Atsiskaitymai",null,null,null,null,"#","#"]
[null,null,null,"Naujos veiklos pavadinimas"]
[3,"Pavadinimas",null,"Poveiklės (pirkimo) pavadinimas","Prekės"," ",0,null,{"$f":"MIN(I62:I63)","v":0},{"$f":"MAX(J62:J63)","v":0}]
[null,null,null,1]
[]
[]
[]
[]
[]
[]
[]
[]
[]
[]
[]
[]
[]
[]
[]
[]
[]
[null,null,null,15]
[null,null,null,16]
[null,null,null,17]
[null,null,null,18]
[null,"1.1.2. Gaisrų gesinimo ir gelbėjimo transporto priemonės"]
[null,null,null,"Atsiskaitymai",null,null,null,null,"#","#"]
[null,null,null,"Naujos veiklos pavadinimas"]
[4,null,null,"Poveiklės (pirkimo) pavadinimas","Prekės"," ",0,null,{"$f":"MIN(I88:I89)","v":0},{"$f":"MAX(J88:J89)","v":0}]
[null,null,null,1]
[]
[]
[]
[]
[]
[]
[]
[]
[]
[]
[]
[]
[]
[]
[]
[]
[]
[]
[null,null,null,16]
[null,null,null,17]
[null,null,null,18]
[]
[null,null,null,"Atsiskaitymai",null,null,null,null,"#","#"]
[null,null,null,"Naujos veiklos pavadinimas"]
[5,null,null,"Poveiklės (pirkimo) pavadinimas","Prekės"," ",0,null,{"$f":"MIN(I112:I113)","v":0},{"$f":"MAX(J112:J113)","v":0}]
[null,null,null,1]
[]
[]
[]
[]
[]
[]
[]
[]
[]
[]
[]
[]
[]
[]
[]
[]
[]
[null,null,null,17]
[null,null,null,18]
[]
[null,null,null,"Atsiskaitymai",null,null,null,null,"#","#"]
[null,null,null,"Naujos veiklos pavadinimas"]
[6,null,null,"Poveiklės (pirkimo) pavadinimas","Prekės"," ",0,null,{"$f":"MIN(I136:I137)","v":0},{"$f":"MAX(J136:J137)","v":0}]
[null,null,null,1]
[]
[]
[]
[]
[]
[]
[]
[]
[]
[]
[]
[]
[]
[]
[]
[]
[]
[null,null,null,17]
[null,null,null,18]
[]
[null,null,null,"Atsiskaitymai",null,null,null,null,"#","#"]
[null,null,null,"Naujos veiklos pavadinimas"]
[7,null,null,"Poveiklės (pirkimo) pavadinimas","Prekės"," ",0,null,{"$f":"MIN(I160:I161)","v":0},{"$f":"MAX(J160:J161)","v":0}]
[null,null,null,1]
[]
[]
[]
[]
[]
[]
[]
[]
[]
[]
[]
[]
[]
[]
[]
[]
[]
[null,null,null,17]
[null,null,null,18]
[]
[null,null,null,"Atsiskaitymai",null,null,null,null,"#","#"]
[null,null,null,"Naujos veiklos pavadinimas"]
[8,null,null,"Poveiklės (pirkimo) pavadinimas","Prekės"," ",0,null,{"$f":"MIN(I184:I185)","v":0},{"$f":"MAX(J184:J185)","v":0}]
[null,null,null,1]
[]
[]
[]
[]
[]
[]
[]
[]
[]
[]
[]
[]
[]
[]
[]
[]
[]
[null,null,null,17]
[null,null,null,18]
[]
[null,null,null,"Atsiskaitymai",null,null,null,null,"#","#"]
[null,null,null,"Naujos veiklos pavadinimas"]
[9,null,null,"Poveiklės (pirkimo) pavadinimas","Prekės"," ",0,null,{"$f":"MIN(I208:I209)","v":0},{"$f":"MAX(J208:J209)","v":0}]
[null,null,null,1]
[]
[]
[]
[]
[]
[]
[]
[]
[]
[]
[]
[]
[]
[]
[]
[]
[]
[null,null,null,17]
[null,null,null,18]
[]
[null,null,null,"Atsiskaitymai",null,null,null,null,"#","#"]
[null,null,null,"Naujos veiklos pavadinimas"]
[10,null,null,"Poveiklės (pirkimo) pavadinimas","Prekės"," ",0,null,{"$f":"MIN(I232:I233)","v":0},{"$f":"MAX(J232:J233)","v":0}]
[null,null,null,1]
[]
[]
[]
[]
[]
[]
[]
[]
[]
[]
[]
[]
[]
[]
[]
[]
[]
[null,null,null,17]
[null,null,null,18]
[]
[null,null,null,"Atsiskaitymai",null,null,null,null,"#","#"]
[null,null,null,"Naujos veiklos pavadinimas"]
[11,null,null,"Poveiklės (pirkimo) pavadinimas","Prekės","Atviras konkursas",20000,null,{"$f":"MIN(I410:I415)","v":0},{"$f":"MAX(J410:J415)","v":0}]
[null,null,null,1]
[]
[]
[]
[]
[]
[]
[]
[]
[]
[]
[]
[]
[]
[]
[]
[]
[]
[null,null,null,17]
[null,null,null,18]
[]
[null,null,null,"Atsiskaitymai",null,null,null,null,"#","#"]
[null,null,null,null,null,null,null,null,"*","*",null,null,null,null,null,null,null,null,null,null,"12 mėn.",{"$f":"SUM(K13:V13,K37:V37,K63:V63,K89:V89,K113:V113,K137:V137,K161:V161,K185:V185,K209:V209,K233:V233)","v":0},null,null,null,null,null,null,null,null,null,null,"24 mėn.",{"$f":"SUM(K13:AH13,K37:AH37,K63:AH63,K89:AH89,K113:AH113,K137:AH137,K161:AH161,K185:AH185,K209:AH209,K233:AH233)","v":0}]
[null,null,null,"Atsiskaitymų suma",null,null,{"$f":"SUM(G11,G15,G39,G65,G91,G115,G139,G163,G187,G211)","v":0},null,null,null,{"$f":"SUM(K13,K37,K63,K89,K113,K137,K161,K185,K209,K233)","v":0},{"$f":"SUM(L13,L37,L63,L89,L113,L137,L161,L185,L209,L233)","v":0},{"$f":"SUM(M13,M37,M63,M89,M113,M137,M161,M185,M209,M233)","v":0},{"$f":"SUM(N13,N37,N63,N89,N113,N137,N161,N185,N209,N233)","v":0},{"$f":"SUM(O13,O37,O63,O89,O113,O137,O161,O185,O209,O233)","v":0},{"$f":"SUM(P13,P37,P63,P89,P113,P137,P161,P185,P209,P233)","v":0},{"$f":"SUM(Q13,Q37,Q63,Q89,Q113,Q137,Q161,Q185,Q209,Q233)","v":0},{"$f":"SUM(R13,R37,R63,R89,R113,R137,R161,R185,R209,R233)","v":0},{"$f":"SUM(S13,S37,S63,S89,S113,S137,S161,S185,S209,S233)","v":0},{"$f":"SUM(T13,T37,T63,T89,T113,T137,T161,T185,T209,T233)","v":0},{"$f":"SUM(U13,U37,U63,U89,U113,U137,U161,U185,U209,U233)","v":0},{"$f":"SUM(V13,V37,V63,V89,V113,V137,V161,V185,V209,V233)","v":0},{"$f":"SUM(W13,W37,W63,W89,W113,W137,W161,W185,W209,W233)","v":0},{"$f":"SUM(X13,X37,X63,X89,X113,X137,X161,X185,X209,X233)","v":0},{"$f":"SUM(Y13,Y37,Y63,Y89,Y113,Y137,Y161,Y185,Y209,Y233)","v":0},{"$f":"SUM(Z13,Z37,Z63,Z89,Z113,Z137,Z161,Z185,Z209,Z233)","v":0},{"$f":"SUM(AA13,AA37,AA63,AA89,AA113,AA137,AA161,AA185,AA209,AA233)","v":0},{"$f":"SUM(AB13,AB37,AB63,AB89,AB113,AB137,AB161,AB185,AB209,AB233)","v":0},{"$f":"SUM(AC13,AC37,AC63,AC89,AC113,AC137,AC161,AC185,AC209,AC233)","v":0},{"$f":"SUM(AD13,AD37,AD63,AD89,AD113,AD137,AD161,AD185,AD209,AD233)","v":0},{"$f":"SUM(AE13,AE37,AE63,AE89,AE113,AE137,AE161,AE185,AE209,AE233)","v":0},{"$f":"SUM(AF13,AF37,AF63,AF89,AF113,AF137,AF161,AF185,AF209,AF233)","v":0},{"$f":"SUM(AG13,AG37,AG63,AG89,AG113,AG137,AG161,AG185,AG209,AG233)","v":0},{"$f":"SUM(AH13,AH37,AH63,AH89,AH113,AH137,AH161,AH185,AH209,AH233)","v":0},{"$f":"SUM(AI13,AI37,AI63,AI89,AI113,AI137,AI161,AI185,AI209,AI233)","v":0},{"$f":"SUM(AJ13,AJ37,AJ63,AJ89,AJ113,AJ137,AJ161,AJ185,AJ209,AJ233)","v":0},{"$f":"SUM(AK13,AK37,AK63,AK89,AK113,AK137,AK161,AK185,AK209,AK233)","v":0},{"$f":"SUM(AL13,AL37,AL63,AL89,AL113,AL137,AL161,AL185,AL209,AL233)","v":0},{"$f":"SUM(AM13,AM37,AM63,AM89,AM113,AM137,AM161,AM185,AM209,AM233)","v":0},{"$f":"SUM(AN13,AN37,AN63,AN89,AN113,AN137,AN161,AN185,AN209,AN233)","v":0},{"$f":"SUM(AO13,AO37,AO63,AO89,AO113,AO137,AO161,AO185,AO209,AO233)","v":0},{"$f":"SUM(AP13,AP37,AP63,AP89,AP113,AP137,AP161,AP185,AP209,AP233)","v":0},{"$f":"SUM(AQ13,AQ37,AQ63,AQ89,AQ113,AQ137,AQ161,AQ185,AQ209,AQ233)","v":0},{"$f":"SUM(AR13,AR37,AR63,AR89,AR113,AR137,AR161,AR185,AR209,AR233)","v":0},{"$f":"SUM(AS13,AS37,AS63,AS89,AS113,AS137,AS161,AS185,AS209,AS233)","v":0},{"$f":"SUM(AT13,AT37,AT63,AT89,AT113,AT137,AT161,AT185,AT209,AT233)","v":0},{"$f":"SUM(AU13,AU37,AU63,AU89,AU113,AU137,AU161,AU185,AU209,AU233)","v":0},{"$f":"SUM(AV13,AV37,AV63,AV89,AV113,AV137,AV161,AV185,AV209,AV233)","v":0},{"$f":"SUM(AW13,AW37,AW63,AW89,AW113,AW137,AW161,AW185,AW209,AW233)","v":0},{"$f":"SUM(AX13,AX37,AX63,AX89,AX113,AX137,AX161,AX185,AX209,AX233)","v":0},"Viso",{"$f":"SUM(K259:AX259)","v":0}]
[]
[null,null,null,"KOMENTARAI IR PASTABOS"]

{"sheet":"Pildymo instrukcija","index":1,"n_rows":28,"n_cols":1,"rows_kept":28,"cut":false,"hidden":false,"merged":[]}
[]
["Detalaus projekto veiklų ir pirkimų įgyvendinimo grafiko pildymo instrukcija"]
[]
["BENDROS PASTABOS: 1) grafikas tinkamai veikia tik tuomet, kai Microsoft „Excel“ programoje įjungta galimybė naudoti makrokomandas; 2) naudojant dokumento išsaugojimo funkciją „Save As“, turi būti pasirinktas dokumento formatas „Excel Macro-Enabled Workbook“. \n"]
["„Projekto kodas“/„Priemonės numeris“,  „Projekto pavadinimas“ ir „Pareiškėjas“ nurodomi duomenys iš paraiškos. Projekto kodas nurodomas, jeigu jis yra žinomas grafiko pildymo metu. Kitu atveju nurodomas priemonės numeris.\n"]
[]
["„Projekto sutarties pasirašymo data“. Numatoma projekto sutarties pasirašymo data apskaičiuojama prie paraiškos pateikimo datos pridedant 3-5 mėn. (dėl tikslesnės datos konsultuotis su CPVA projekto vadovu). Nurodžius datą automatiškai užpildomos stulpelio „Projekto veiklų vykdymo laikotarpis, mėn.“ reikšmės metų ir mėnesių tikslumu.\n"]
["„Projekto veiklų įgyvendinimo trukmė (mėn.)“ nurodoma trukmė mėnesiais. Trukmė turi sutapti su paraiškos 8.1 punkte nurodyta informacija. Pagal nurodytą trukmę, stulpelyje „Projekto veiklų vykdymo laikotarpis, mėn.“ automatiškai sukuriamas atitinkamas kiekis langelių (mėnesių). Nenurodžius jokios trukmės rodoma 40 langelių (mėnesių).\n"]
["1 stulpelis „Nr.“. Nurodomas veiklos numeris (1.1., 1.2...) iš paraiškos. Taip pat poveiklės (pirkimo) numeris (1.1.1., 1.1.2...). Jeigu poveiklė (pirkimas) nėra  priskiriama konkrečiai veiklai, vietoje veiklos numerio nurodomas išlaidų kategorijos numeris iš paraiškos (pavyzdžiui „6“). Poveiklės (pirkimo) numeris nėra nurodomas. \n"]
["2 stulpelis „Veiklos, poveiklės (pirkimai) ir jų etapai“. Nurodoma: 1) veiklos pavadinimas iš paraiškos. Jeigu poveiklė (pirkimas) nėra priskiriama konkrečiai veiklai, vietoje veiklos pavadinimo nurodomas išlaidų kategorijos pavadinimas; 2) poveiklės (pirkimo) pavadinimas. Pagal nurodytą poveiklę iš sąrašo pasirenkamas atitinkamas poveiklės (pirkimo) tipas. Galima pasirinkti šiuos tipus: 1. prekės; 2. paslaugos; 3. rangos darbai; 4. projektavimas; 5. pirkimas nevykdomas; 6. projektavimas ir rangos darbai. Pasirinkus atitinkamą tipą automatiškai sukuriami poveiklės (pirkimo) etapai. Etapų skaičius priklausomai nuo pasirinkto tipo yra skirtingas. Nepriklausomai nuo pasirinkto tipo, visuomet yra numatytas etapas „Atsiskaitymai“. PASTABOS: 1) negalima trinti, pervadinti ir (ar) kurti (įterpti) naujų etapų;  2) netiesioginės projekto išlaidos grafike nėra nurodomos. Norint įtraukti naują veiklą spaudžiamas mygtukas „+“, norint pašalinti veiklą spaudžiamas mygtukas „-“. Taip pat šie mygtukai naudojami, norint įtraukti arba pašalinti poveiklę (pirkimą), kuri nėra priskiriami konkrečiai veiklai.\n"]
["3 stulpelis „Pirkimo būdas“. Iš sąrašo pasirenkamas pirkimo būdas. Jeigu 2 stulpelyje pasirinktas poveiklės (pirkimo) tipas „Pirkimas nevykdomas“, pirkimo būdo nurodyti nereikia. Ne perkančiosioms organizacijoms taikomi šie pirkimo būdai: 1) konkursas; 2) derybos; 3) pirkimas iš vieno tiekėjo.\n"]
["4 stulpelis „Pirkimo sutarties vertė, finansuojama projekto lėšomis“. Nurodoma planuojama pirkimo sutarties vertė, finansuojama projekto lėšomis. Jeigu pirkimą planuojama skaidyti į dalis, nurodoma visų planuojamų sudaryti pirkimo sutarčių vertė. Jeigu pirkimas yra įvykdytas, nurodoma faktinė pirkimo sutarties vertė, finansuojama projekto lėšomis. Jeigu 2 stulpelyje pasirinktas poveiklės (pirkimo) tipas „Pirkimas nevykdomas“ nurodoma planuojama patirti išlaidų suma, finansuojama projekto lėšomis.\n"]
["5 stulpelis „Veiklos etapai baigti iki projekto sutarties pasirašymo“. Iš sąrašo pasirenkama ar atitinkamą poveiklės (pirkimo) etapą planuojama baigti iki projekto sutarties pasirašymo. Jeigu atitinkamas poveiklės (pirkimo) etapas nėra aktualus, tuomet iš sąrašo pasirenkama „Netaikoma“.\n"]
["6 ir 7 stulpeliai „Projekto sutarties mėnuo, kai pradedama ir baigiama vykdyti veikla“. Nurodomas projekto sutarties mėnuo, kada pradedamas ir baigiamas vykdyti atitinkamas poveiklės (pirkimo) etapas. Nurodžius šias reikšmes automatiškai apskaičiuojama bendra poveiklės (pirkimo) trukmė ir nuspalvinami atitinkami stulpelio „Projekto veiklų vykdymo laikotarpis, mėn.“ langeliai. PASTABOS: 1) pasirinkus naują poveiklės (pirkimo) tipą, panaikinamos ankščiau nurodytos etapų pradžios ir pabaigos reikšmės; 2) vidutinė pirkimo procedūrų vykdymo trukmė: tarptautinis (4-6 mėn.),  supaprastintas (2-4 mėn.), mažos vertės (1-2 mėn.); 3) vidutinė projektavimo trukmė 4-6 mėn.; 4) jeigu atitinkamas poveiklės (pirkimo) etapas nėra aktualus (netaikomas), tuomet šie stulpeliai nepildomi. \n"]
["„Atsiskaitymų suma“ automatiškai apskaičiuojama visa pirkimo sutarčių (išlaidų) vertė, finansuojama projekto lėšomis ir atsiskaitymų suma (visa ir pagal mėnesius). Taip pat suma per 12 ir 24 mėnesius. "]
["Mygtukas „Lygiuoti“ naudojamas: 1) atsiskaitymo sumų per 12 ir 24 mėnesius apskaičiavimui; 2) atsiskaitymo stulpelių susiaurinimui, kuomet juose ištrinamos skaitinės reikšmės. \n"]
["„Komentarai ir pastabos“. Šiame laukelyje pateikiama projekto veiklų planavimui ir įgyvendinimui svarbi informacija."]
["Poveiklių (pirkimų) etapų detalizavimas"]
["1. Techninės specifikacijos parengimas. Planuojant techninės specifikacijos parengimo trukmę būtina atsižvelgti į:\n1) pirkimo objekto apimtį;\n2) pirkimo objekto sudėtingumą (ar perkamos standartinės rinkoje esančios, ar specifinės, retos prekės ir paslaugos);\n3) specialistų (ekspertų) reikalingų techninės specifikacijos parengimui užimtumą. Įvertinti ar reikės papildomai ieškoti specialistų (ekspertų) ir, ar tai gali turėti įtakos techninės specifikacijos parengimo trukmei;\n4) tai, kad būtina iš anksto paskelbti pirkimų, išskyrus mažos vertės pirkimus, techninių specifikacijų projektus.\nTechninės specifikacijos rengimo pradžia laikomas momentas, kai faktiškai pradedama rengti techninė specifikacija, pabaiga - kai techninė specifikacija paruošta pirkimo vykdymui arba pateikimui CPVA išankstiniam įvertinimui (jeigu taikoma).\n"]
["2. Pirkimo dokumentų parengimas. Planuojant pirkimo dokumentų parengimo trukmę būtina atsižvelgti į:\n1) pirkimo objekto apimtį, taip pat į tai ar pirkimo objektas bus skaidomas į dalis;\n2) tai, ar organizacija turi pasirengusi standartinius pirkimo dokumentus (išskyrus techninę specifikaciją) pagal pirkimo objekto rūšį ir pirkimo būdą, kuriuos pritaikys atitinkamai pagal perkamą objektą, ar pirkimo dokumentus reikės rengti iš naujo;\n3) specialistų reikalingų pirkimo dokumentų parengimui užimtumą. Įvertinti ar reikės papildomai ieškoti specialistų ir, ar tai gali turėti įtakos pirkimo dokumentų parengimo trukmei.\nPirkimo dokumentų rengimo pradžia laikomas momentas, kai faktiškai pradedami rengti pirkimo dokumentai, pabaiga - kai pirkimo dokumentai paruošti pirkimo vykdymui arba pateikimui CPVA išankstiniam įvertinimui (jeigu taikoma).\n"]
["3. Pirkimo dokumentų derinimas su CPVA. Išankstiniam įvertinimui būtina pateikti:\n1) visų projekto pirkimų, kurių išankstinio vertinimo būtinumas nustatytas projektų finansavimo sąlygų apraše, pirkimo dokumentus;\n2) visų projekto pirkimų, kurių planuojamos pirkimo sutarties vertė, finansuojama projekto lėšomis, yra ne mažesnė (≥) nei 134 tūkstančiai eurų perkant prekes ir paslaugas ir ne mažesnė (≥) nei 5 186 tūkstančiai eurų perkant darbus, pirkimo dokumentus;\n3) projekto pirkimo, kurio planuojamos pirkimo sutarties vertė, finansuojama projekto lėšomis, yra didžiausia projekte, pirkimo dokumentus;\n4) pirkimų, kurių planuojamos pirkimo sutarties vertė, finansuojama projekto lėšomis, yra ne mažesnė (≥) nei 58 tūkstančiai eurų prekėms ir paslaugoms ir ne mažesnė (≥) nei 145 tūkstančiai eurų darbams ir kai yra didelė pirkimo svarba projekto įgyvendinimui/rezultatui arba pirkimas yra sudėtingas (pavyzdžiui, perkamas mišrus objektas, t. y. kartu perkamos prekės ir paslaugos arba perkami darbai ir paslaugos; vienu pirkimu perkama daug įvairios įrangos; perkami statybos darbai, nekilnojamas turtas, informacinių technologijų įranga/paslaugos ir pan.), pirkimo dokumentus.\nPirkimo dokumentų derinimui su CPVA rekomenduojama numatyti 1 mėnesį.\n"]
["4. Pirkimo procedūrų atlikimas. Pirkimas prasideda, kai Viešųjų pirkimų tarnyba gauna perkančiosios organizacijos pateiktą skelbimą apie pirkimą arba kai perkančioji organizacija pateikia tiekėjams kvietimą dalyvauti pirkime. Ne perkančiosios organizacijos atliekamo pirkimo pradžia - kvietimo dalyvauti pirkime paskelbimo svetainėje www.esinvesticijos.lt arba kvietimo dalyvauti pirkime pateikimo vienam tiekėjui, diena.\nPirkimas (ar atskiros dalies pirkimas) pasibaigia, kai sudaroma pirkimo sutartis. Planuojant pirkimo procedūrų atlikimo trukmę būtina atsižvelgti į:\n1) pirkimo objekto apimtį, rūšį (prekės, paslaugos, darbai) ir būdą, taip pat į tai ar pirkimas bus skaidomas į dalis;\n2) preliminarų dalyvių ir atitinkamai pasiūlymų skaičių;\n3) atidėjimo terminą (jeigu taikoma);\n4) pasiūlymų vertinimo kriterijus (mažiausios kainos ar ekonomiškai naudingiausio pasiūlymo);\n5) specialistų atliksiančių pirkimą užimtumą. Įvertinti ar reikės papildomai ieškoti specialistų ir, ar tai gali turėti įtakos pirkimo procedūrų atlikimo trukmei;\n6) jeigu pasiūlymai bus vertinami pagal ekonomiškai naudingiausio pasiūlymo kriterijų, ar organizacija turi ekspertus tiekėjų pasiūlymams įvertinti. Įvertinti ar reikės papildomai ieškoti ekspertų ir, ar tai gali turėti įtakos pirkimo procedūrų atlikimo trukmei.\n"]
["5. Prekių pristatymas. Pirkimo sutarties įgyvendinimas. Projektavimas. Rangos darbų vykdymas. Pirkimo sutarties įgyvendinimas prasideda kai sudaroma pirkimo sutartis, arba kai tiekėjas pateikia sutarties įvykdymo užtikrinimą, arba perduodama rangovui statybvietė, arba kitu metu, kuris nustatytas pirkimo sutartyje. Pirkimo sutarties įgyvendinimas pasibaigia, kai pristatomos visos prekės, suteikiamos visos paslaugos, atliekami visi numatyti darbai. Planuojant pirkimo sutarties įgyvendinimo trukmę būtina atsižvelgti į:\n1) pirkimo objekto apimtį ir rūšį (prekės, paslaugos ar darbai);\n2) pirkimo objekto sudėtingumą (ar perkamos standartinės rinkoje esančios, ar specifinės, retos prekės ir paslaugos). Pristatymo terminą būtina numatyti ilgesnį, jeigu žinoma, kad prekes būtina gaminti pagal specialų užsakymą;\n3) rangos darbų sezoniškumą (jeigu taikoma);\n4) statinio projekto ekspertizės atlikimo trukmę.\n"]
["6. Atsiskaitymai. Šioje eilutėje nurodoma suma konkretaus mėnesio langelyje kada planuojama atsiskaityti su tiekėju. Numatant atsiskaitymų sumą ir mėnesį būtina įvertinti, ar planuojama tiekėjui mokėti avansą, jo dydį, taip pat ar planuojama numatyti tarpinius atsiskaitymus už patiektas prekes ir suteiktas paslaugas. Atkreipiame dėmesį, kad rangos darbų išlaidos dažniausiai apmokamos už faktiškai atliktus darbus kas 1-2 mėnesius. Su darbais tiesiogiai susijusių paslaugų išlaidos, dažniausiai apmokamos proporcingai atliktų darbų vertei. Atsiskaitymo tvarka ir terminai apibrėžti mokėjimų, atliekamų pagal komercines sutartis, vėlavimo prevencijos įstatyme. Jeigu pirkimo sutartis įgyvendinta iki projekto sutarties pasirašymo dienos, atsiskaitymų suma nurodoma antrą mėnesį.\n"]
["7. Projektavimo užduoties parengimas. Planuojant projektavimo užduoties parengimo trukmę būtina atsižvelgti į: 1) sąlygas numatytas prie 1 etapo „techninės specifikacijos parengimas“; 2) statybos įstatymo 24 straipsnio 3 dalyje nurodytų dokumentų gavimo terminus; 3) ar projektavimas ir rangos darbai bus perkami kartu ar atskirai. Jeigu projektavimas ir rangos darbai perkami kartu, dažniausiai projektavimo užduotys būna sudėtingesnės, joms parengti reikia daugiau laiko.\n"]
["8. Statybą leidžiančio dokumento gavimas. Planuojant statybą leidžiančio dokumento gavimo trukmę būtina atsižvelgti į statybos įstatyme numatytus terminus.\n"]
["9. Projekto vykdymo priežiūra. Statinio projekto vykdymo priežiūra vykdoma nuo rangos darbų pradžios iki statybos užbaigimo dokumento gavimo dienos."]
["10. Statybos užbaigimo dokumento gavimas. Planuojant statybos užbaigimo dokumento gavimo trukmę būtina atsižvelgti į: 1) pirkimo objekto apimtį ir sudėtingumą; 2) statinio kategoriją (ypatingas, neypatingas ir pan.) ir statinio statybos darbų rūšį (nauja statyba, kapitalinis remontas ir pan.), nes nuo to priklauso statybos užbaigimo dokumento rūšis (statybos užbaigimo aktas, deklaracija apie statybos užbaigimą).\n"]

{"sheet":"Resources","index":2,"n_rows":15,"n_cols":3,"rows_kept":15,"cut":false,"hidden":true,"merged":[]}
[null,null," "]
["Taip",null,"Atviras konkursas"]
["Ne",null,"Ribotas konkursas"]
["Netaikoma",null,"Konkurencinis dialogas"]
[null,null,"Skelbiamos derybos"]
[null,null,"Neskelbiamos derybos"]
[null,null,"Projekto konkursas"]
[null,null,"Supaprastintas skelbiamas pirkimas"]
[null,null,"Supaprastintas neskelbiamas pirkimas"]
[null,null,"Mažos vertės pirkimas"]
[null,null,"Pirkimas per CPO"]
[null,null,"Pirkimas iš vieno tiekėjo"]
[null,null,"Konkursas"]
[null,null,"Derybos"]
[null,null,"VPĮ netaikomas"]